bitfinex-derivatives/quotes_BTCF0:USTF0_20240913
["timestamp","ask_amount","ask_price","bid_price","bid_amount"]
[1726249621686,0.3608,59914.0,59909.0,0.083438]
[1726249621987,0.3608,59914.0,59910.0,0.26]
[1726249622282,0.444223,59921.0,59913.0,0.083432]
[1726249622283,0.3608,59921.0,59913.0,0.083432]
[1726249622471,0.3608,59921.0,59913.0,0.04860749]
[1726249622670,0.3608,59921.0,59912.0,0.04860749]
[1726249622875,0.3608,59921.0,59911.0,0.3904]
[1726249622876,0.3608,59921.0,59915.0,0.26]
[1726249623279,0.3608,59921.0,59915.0,0.30860749]
[1726249623486,0.3608,59921.0,59917.0,0.083427]
[1726249623689,0.3608,59926.0,59920.0,0.6208]
[1726249623877,0.083398,59939.0,59926.0,0.083415]
[1726249624182,0.0045,59955.0,59925.0,0.6208]
[1726249624183,0.3608,59958.0,59938.0,0.66936364]
[1726249624380,0.3608,59958.0,59946.0,0.26]
[1726249624588,0.0039,59963.0,59953.0,0.26]
[1726249624976,0.087264,59963.0,59953.0,0.26]
[1726249625176,0.0039,59963.0,59958.0,0.26]
[1726249625380,0.0039,59963.0,59962.0,0.3608]
[1726249625583,0.3608,59983.0,59962.0,0.3608]
[1726249625790,0.083342,59979.0,59971.0,0.3608]
[1726249625975,0.083342,59979.0,59968.0,0.26]
[1726249625976,0.3608,59983.0,59968.0,0.26]
[1726249626181,1.50915891,60005.0,59971.0,0.04853596]
[1726249626182,0.3608,59987.0,59971.0,0.04853596]
[1726249626381,0.3608,59987.0,59969.0,0.6532]
[1726249626382,0.26,59982.0,59969.0,0.44277596]
[1726249626576,0.6208,59977.0,59969.0,0.2669]
[1726249626783,0.6208,59977.0,59966.0,0.3608]
[1726249626980,0.704145,59977.0,59966.0,0.3608]
[1726249627584,0.08335,59973.0,59969.0,0.005]
[1726249627983,0.50024,59972.0,59969.0,0.005]
[1726249628383,0.50024,59971.0,59966.0,0.3658]
[1726249628585,0.08335,59973.0,59966.0,0.3658]
[1726249628890,0.3608,59975.0,59966.0,0.3658]
[1726249629597,0.001,59971.0,59966.0,0.3658]
[1726249629784,0.001,59971.0,59966.0,0.3608]
[1726249629988,0.001,59971.0,59969.0,0.007]
[1726249630188,0.001,59972.0,59969.0,0.007]
[1726249630391,0.3618,59975.0,59969.0,0.007]
[1726249630579,0.3618,59975.0,59966.0,0.3608]
[1726249630784,0.001,59971.0,59966.0,0.3678]
[1726249630997,0.3608,59970.0,59966.0,0.007]
[1726249631488,0.444155,59970.0,59969.0,0.007]
[1726249631793,0.083355,59970.0,59969.0,0.007]
[1726249632089,0.444155,59970.0,59969.0,0.007]
[1726249632492,0.4016183,59970.0,59969.0,0.007]
[1726249632988,0.11529336,59970.0,59969.0,0.007]
[1726249633194,0.002,59970.0,59966.0,0.008]
[1726249633395,0.11729336,59970.0,59966.0,0.008]
[1726249633891,0.11729336,59970.0,59959.0,0.1368]
[1726249633892,0.3608,59969.0,59959.0,0.1368]
[1726249634091,0.47611027,59969.0,59964.0,0.083362]
[1726249634279,0.11737459,59970.0,59968.0,0.444156]
[1726249634479,0.002,59970.0,59968.0,0.444156]
[1726249634699,0.001,59970.0,59968.0,0.3608]
[1726249634993,0.002,59970.0,59968.0,0.3608]
[1726249635291,0.13335276,59970.0,59968.0,0.3608]
[1726249635590,0.90185661,59969.0,59966.0,0.009]
[1726249635792,0.13135276,59967.0,59966.0,0.009]
[1726249635984,0.04081661,59967.0,59966.0,0.009]
[1726249636180,1.5,59967.0,59966.0,0.009]
[1726249636495,0.083361,59965.0,59961.0,0.3608]
[1726249636685,1.54081873,59967.0,59961.0,0.3608]
[1726249636686,0.11540977,59963.0,59961.0,0.3608]
[1726249637486,0.002,59967.0,59961.0,0.3608]
[1726249637691,0.08336,59966.0,59961.0,0.3608]
[1726249638088,0.26,59978.0,59961.0,0.3608]
[1726249638089,1.5,59969.0,59965.0,0.26]
[1726249638284,1.5,59969.0,59962.0,0.583685]
[1726249638285,0.083327,59990.0,59968.0,0.6208]
[1726249638485,0.08332,59995.0,59989.0,0.3608]
[1726249638687,0.26,59999.0,59989.0,0.3608]
[1726249639084,0.3647,60001.0,59989.0,0.3608]
[1726249639287,0.0039,60001.0,59994.0,0.3608]
[1726249639498,0.26,60010.0,59988.0,0.26]
[1726249639499,0.083315,59999.0,59990.0,0.3608]
[1726249639999,0.008,59999.0,59990.0,0.3608]
[1726249640500,0.084312,60001.0,59995.0,0.3608]
[1726249640688,0.001,59999.0,59995.0,0.3608]
[1726249641205,0.002,59999.0,59995.0,0.3608]
[1726249641392,0.37485481,60004.0,59995.0,0.3608]
[1726249641688,0.37485481,60004.0,59994.0,0.3608]
[1726249641890,0.37485481,60004.0,59994.0,0.444119]
[1726249642098,0.37485481,60004.0,59999.0,0.3608]
[1726249642494,0.37485481,60004.0,59994.0,0.3608]
[1726249643000,0.3608,60000.0,59994.0,0.3608]
[1726249643190,0.083318,59996.0,59995.0,0.008]
[1726249643391,0.083318,59996.0,59995.0,0.015]
[1726249643791,0.083318,59996.0,59995.0,0.007]
[1726249643993,1.183358,59996.0,59995.0,0.007]
[1726249644194,0.083319,59995.0,59994.0,0.014]
[1726249644394,0.50004,59995.0,59982.0,0.3608]
[1726249644592,0.343333,59985.0,59976.0,0.3608]
[1726249644989,1.583333,59985.0,59976.0,0.3608]
[1726249645302,1.944133,59985.0,59972.0,0.26]
[1726249645602,1.98494215,59985.0,59975.0,0.3608]
[1726249645987,1.90160915,59985.0,59979.0,0.08334]
[1726249646286,0.40160915,59985.0,59982.0,0.26]
[1726249646484,0.40160915,59985.0,59984.0,0.1408]
[1726249646485,0.17222983,59985.0,59984.0,0.1408]
[1726249646694,0.04180915,59985.0,59984.0,0.1408]
[1726249646900,0.04280915,59985.0,59984.0,0.1408]
[1726249647089,0.1261352,59985.0,59984.0,0.1448]
[1726249647286,0.0428022,59985.0,59984.0,0.1448]
[1726249647490,0.0418022,59985.0,59984.0,0.1448]
[1726249647697,0.0418022,59985.0,59984.0,0.1578]
[1726249648393,0.0418022,59985.0,59984.0,0.1508]
[1726249648710,0.1251352,59985.0,59984.0,0.1508]
[1726249649209,0.1241352,59985.0,59984.0,0.1398]
[1726249649389,0.17628077,59985.0,59984.0,0.1488]
[1726249649792,0.17628077,59985.0,59984.0,0.1418]
[1726249650002,0.17628077,59985.0,59984.0,0.1518]
[1726249650198,0.09294777,59985.0,59984.0,0.1518]
[1726249650402,0.09194777,59985.0,59984.0,0.1438]
[1726249650609,0.17528077,59985.0,59984.0,0.1338]
[1726249650901,1.19206777,59985.0,59975.0,0.36188]
[1726249651092,1.19206777,59985.0,59971.0,0.3608]
[1726249651093,0.083351,59972.0,59971.0,0.3608]
[1726249651295,0.083362,59964.0,59963.0,0.3608]
[1726249651496,0.0408022,59964.0,59963.0,0.3608]
[1726249652404,0.09194777,59964.0,59963.0,0.3608]
[1726249652708,0.083337,59983.0,59963.0,0.3608]
[1726249652709,0.18123788,59965.0,59963.0,0.3608]
[1726249652903,0.18123788,59965.0,59964.0,0.1485641]
[1726249653202,0.3608,59978.0,59963.0,0.4531249]
[1726249653410,0.3608,59978.0,59974.0,0.04889222]
[1726249653614,0.083351,59972.0,59971.0,0.07118963]
[1726249653795,0.083351,59972.0,59971.0,0.006]
[1726249654496,0.166702,59972.0,59971.0,0.006]
[1726249654690,0.166702,59972.0,59971.0,0.06538689]
[1726249654891,0.083355,59969.0,59968.0,0.06538689]
[1726249655194,0.3608,59972.0,59967.0,0.06538689]
[1726249655397,0.083356,59968.0,59964.0,0.0630589]
[1726249655603,0.166722,59965.0,59964.0,0.0630589]
[1726249655798,0.083361,59965.0,59964.0,0.014]
[1726249656109,0.083362,59964.0,59963.0,0.0600589]
[1726249656296,0.083362,59964.0,59963.0,0.011]
[1726249656497,0.166726,59963.0,59962.0,0.0490537]
[1726249656693,0.083368,59960.0,59959.0,0.0490537]
[1726249656901,0.16674,59958.0,59957.0,0.04906282]
[1726249657103,0.083373,59956.0,59955.0,0.04906282]
[1726249657304,0.083375,59955.0,59954.0,0.04906282]
[1726249657495,0.16675,59955.0,59954.0,0.04904749]
[1726249657696,0.16675,59955.0,59951.0,0.06538689]
[1726249657697,0.3608,59955.0,59952.0,0.04904749]
[1726249657904,0.26,59953.0,59952.0,0.04904749]
[1726249658101,0.26,59953.0,59947.0,0.04904749]
[1726249658102,0.6208,59953.0,59947.0,0.04904749]
[1726249658302,0.6208,59948.0,59944.0,0.04904749]
[1726249658510,0.16678,59944.0,59943.0,0.04904749]
[1726249658718,0.083391,59943.0,59942.0,0.04903831]
[1726249659009,0.083394,59941.0,59940.0,0.04903831]
[1726249659316,0.083397,59939.0,59938.0,0.04903831]
[1726249659710,0.083397,59939.0,59930.0,0.0813249]
[1726249659711,0.083398,59938.0,59936.0,0.04903831]
[1726249660006,0.083398,59938.0,59928.0,0.00108]
[1726249660007,0.166808,59934.0,59928.0,0.00108]
[1726249660208,0.083423,59920.0,59919.0,0.06538689]
[1726249660410,0.6208,59929.0,59915.0,0.42618689]
[1726249660709,0.6208,59929.0,59915.0,0.06538689]
[1726249660902,0.083421,59922.0,59916.0,0.06538689]
[1726249661218,0.083421,59922.0,59915.0,0.50961689]
[1726249661411,0.26,59920.0,59913.0,0.06538689]
[1726249661615,1.5,59928.0,59914.0,0.26]
[1726249661801,0.083421,59922.0,59914.0,0.6208]
[1726249662124,0.083421,59922.0,59914.0,0.3608]
[1726249662306,0.3608,59925.0,59914.0,0.3608]
[1726249662509,0.001,59920.0,59919.0,0.011]
[1726249662921,0.083427,59917.0,59916.0,0.008]
[1726249663108,0.083444,59905.0,59903.0,0.3608]
[1726249663413,0.001,59920.0,59904.0,0.44]
[1726249663619,0.002,59922.0,59914.0,0.006]
[1726249663821,0.08343,59916.0,59914.0,0.006]
[1726249664208,0.08343,59916.0,59909.0,0.3608]
[1726249664403,0.083416,59926.0,59909.0,0.3608]
[1726249664617,0.3608,59918.0,59909.0,0.3608]
[1726249664806,0.083438,59910.0,59903.0,0.3718]
[1726249665218,0.3608,59912.0,59903.0,0.3718]
[1726249665219,0.44,59911.0,59903.0,0.3718]
[1726249665421,0.083444,59905.0,59903.0,0.3718]
[1726249665602,0.083444,59905.0,59904.0,0.004]
[1726249666415,0.083444,59905.0,59903.0,0.004]
[1726249666815,0.083446,59904.0,59903.0,0.004]
[1726249667115,0.442,59911.0,59903.0,0.004]
[1726249667116,0.001,59905.0,59903.0,0.004]
[1726249667318,0.002,59905.0,59904.0,0.888246]
[1726249667613,0.002,59905.0,59904.0,0.3648]
[1726249667810,1.502,59905.0,59904.0,0.3648]
[1726249668518,0.083443,59907.0,59904.0,0.3648]
[1726249668713,0.001,59905.0,59904.0,0.3648]
[1726249668919,0.001,59905.0,59904.0,0.3608]
[1726249669122,0.001,59905.0,59904.0,0.884246]
[1726249669423,0.001,59905.0,59904.0,0.3608]
[1726249669913,0.001,59905.0,59904.0,0.3658]
[1726249670123,0.084444,59905.0,59904.0,0.005]
[1726249670622,0.001,59905.0,59904.0,0.8058]
[1726249671122,0.002,59905.0,59904.0,0.8058]
[1726249671312,0.002,59905.0,59904.0,0.3658]
[1726249671514,0.3608,59915.0,59904.0,0.3658]
[1726249671713,0.444231,59915.0,59904.0,0.3658]
[1726249671919,0.083444,59905.0,59904.0,0.005]
[1726249672131,0.444231,59915.0,59903.0,0.44]
[1726249672318,0.083442,59907.0,59899.0,0.3608]
[1726249672623,0.083435,59912.0,59904.0,0.3608]
[1726249672809,0.083435,59912.0,59904.0,0.444245]
[1726249673108,0.08344,59909.0,59904.0,0.3608]
[1726249673309,0.08344,59909.0,59904.0,0.3658]
[1726249673525,0.001,59907.0,59904.0,0.3658]
[1726249673719,0.001,59907.0,59906.0,0.083443]
[1726249674116,0.001,59907.0,59904.0,0.8008]
[1726249674315,0.001,59907.0,59904.0,0.449245]
[1726249674718,0.001,59907.0,59905.0,0.083444]
[1726249674921,0.001,59907.0,59906.0,0.083443]
[1726249675411,0.001,59912.0,59908.0,0.08344]
[1726249675622,0.001,59912.0,59904.0,0.8158]
[1726249675623,0.001,59912.0,59911.0,0.083436]
[1726249675827,1.44991024,59914.0,59911.0,0.083436]
[1726249676123,1.44991024,59914.0,59912.0,0.083433]
[1726249676329,1.44991024,59914.0,59913.0,0.083433]
[1726249676828,1.44991024,59914.0,59911.0,0.503]
[1726249676829,1.44991024,59914.0,59912.0,0.083433]
[1726249677323,1.44991024,59914.0,59913.0,0.083433]
[1726249677824,0.08342,59923.0,59913.0,1.10072]
[1726249678019,0.3608,59931.0,59920.0,0.083423]
[1726249678323,0.3608,59931.0,59924.0,0.44]
[1726249678736,0.083396,59940.0,59926.0,0.444214]
[1726249678927,0.3608,59942.0,59929.0,0.44]
[1726249678928,1.5,59939.0,59929.0,0.44]
[1726249679119,1.5,59939.0,59920.0,0.3608]
[1726249679120,1.5,59939.0,59923.0,0.44]
[1726249679314,1.5,59939.0,59920.0,0.3648]
[1726249679315,0.3608,59932.0,59920.0,0.37425382]
[1726249679619,0.083417,59925.0,59924.0,0.017]
[1726249680220,0.083417,59925.0,59920.0,0.37025382]
[1726249680221,0.083418,59924.0,59923.0,0.004]
[1726249680418,0.083418,59924.0,59923.0,0.011]
[1726249681728,0.166836,59924.0,59923.0,0.011]
[1726249682025,0.083427,59917.0,59916.0,0.3608]
[1726249683433,0.083422,59921.0,59916.0,0.3698]
[1726249683725,0.083427,59917.0,59916.0,0.3758]
[1726249684434,0.083421,59922.0,59917.0,0.083426]
[1726249684630,1.86164,59939.0,59921.0,0.6208]
[1726249684937,1.86164,59939.0,59932.0,0.26]
[1726249684938,0.083402,59935.0,59932.0,0.26]
[1726249685129,1.50172,59939.0,59932.0,0.26]
[1726249685130,1.5,59939.0,59934.0,0.3608]
[1726249685435,0.3608,59945.0,59937.0,0.26]
[1726249685736,0.08339,59944.0,59942.0,0.26]
[1726249685933,0.3608,59945.0,59942.0,0.26]
[1726249686264,1.50092,59951.0,59943.0,0.083391]
[1726249686423,1.5,59951.0,59948.0,0.6208]
[1726249686831,0.3608,59963.0,59948.0,0.68622313]
[1726249687035,0.3608,59963.0,59948.0,0.42622313]
[1726249687036,0.3608,59957.0,59948.0,0.42622313]
[1726249687224,0.083378,59953.0,59948.0,0.42622313]
[1726249687428,1.5,59952.0,59948.0,0.42622313]
[1726249688233,0.083383,59949.0,59948.0,0.42622313]
[1726249688427,0.083383,59949.0,59948.0,0.3608]
[1726249688727,1.50084,59952.0,59948.0,0.6228]
[1726249688927,1.5,59952.0,59949.0,0.1394]
[1726249689131,0.3608,59970.0,59951.0,0.3608]
[1726249689330,0.083361,59965.0,59960.0,0.3608]
[1726249689635,1.8608,59970.0,59961.0,0.26]
[1726249689825,1.8608,59970.0,59960.0,0.3608]
[1726249689826,0.3608,59970.0,59960.0,0.3608]
[1726249690137,0.083361,59965.0,59960.0,0.3608]
[1726249691931,0.083361,59965.0,59960.0,0.3748]
[1726249692425,0.3618,59970.0,59961.0,0.26]
[1726249692731,0.3608,59970.0,59961.0,0.26]
[1726249693130,0.3608,59970.0,59960.0,0.3618]
[1726249693630,0.083361,59965.0,59961.0,0.01]
[1726249693937,0.083363,59964.0,59961.0,0.01]
[1726249694139,0.083355,59969.0,59961.0,0.01]
[1726249694637,0.343355,59969.0,59961.0,0.01]
[1726249694838,0.083362,59965.0,59961.0,0.01]
[1726249695034,0.26,59969.0,59961.0,0.01]
[1726249695230,0.3618,59970.0,59961.0,0.022]
[1726249695625,0.26,59964.0,59961.0,0.022]
[1726249695830,0.083365,59962.0,59961.0,0.008]
[1726249696025,0.16673,59962.0,59961.0,0.008]
[1726249696240,0.66705,59962.0,59961.0,0.008]
[1726249696535,1.5,59962.0,59961.0,0.009]
[1726249696726,2.16705,59962.0,59961.0,0.009]
[1726249696932,1.66673,59962.0,59961.0,0.009]
[1726249697937,1.81851654,59962.0,59961.0,0.009]
[1726249698437,2.91883654,59962.0,59961.0,0.009]
[1726249698639,2.91883654,59962.0,59961.0,0.00797787]
[1726249699137,0.083374,59956.0,59947.0,0.00927946]
[1726249699345,0.083386,59947.0,59946.0,0.3608]
[1726249699545,0.30571898,59947.0,59946.0,0.3608]
[1726249699741,0.27350328,59947.0,59943.0,0.00939529]
[1726249700040,0.083395,59941.0,59939.0,0.3608]
[1726249700235,0.18150883,59945.0,59939.0,0.444197]
[1726249700236,0.09199445,59940.0,59939.0,0.444197]
[1726249700437,0.04082415,59940.0,59939.0,0.444197]
[1726249700843,0.25879508,59940.0,59939.0,0.3608]
[1726249701038,0.17541629,59940.0,59939.0,0.3608]
[1726249701242,0.17541629,59940.0,59939.0,0.3668]
[1726249701442,1.67541629,59940.0,59939.0,0.3668]
[1726249701843,1.73522402,59940.0,59939.0,0.3668]
[1726249702737,1.73522402,59940.0,59931.0,0.083407]
[1726249702738,3.37314902,59940.0,59921.0,0.3608]
[1726249702935,0.18182873,59925.0,59918.0,0.1627]
[1726249703138,0.05980773,59939.0,59924.0,0.9816]
[1726249703347,0.05980773,59939.0,59938.0,0.6208]
[1726249703537,0.15182639,59939.0,59938.0,0.6208]
[1726249703737,0.09201866,59939.0,59938.0,0.704198]
[1726249704243,0.09201866,59939.0,59938.0,1.804718]
[1726249704741,0.09201866,59939.0,59938.0,0.3608]
[1726249705145,0.3608,59945.0,59938.0,0.42610592]
[1726249705444,0.083381,59951.0,59944.0,0.6208]
[1726249705648,0.3608,59957.0,59944.0,0.6208]
[1726249705848,1.5,59956.0,59944.0,0.42610592]
[1726249706036,1.5,59956.0,59944.0,0.3608]
[1726249706236,0.26,59954.0,59942.0,0.06530592]
[1726249706535,0.3608,59943.0,59938.0,0.01204]
[1726249706736,0.343397,59939.0,59938.0,0.011]
[1726249706942,0.083405,59933.0,59932.0,0.06530592]
[1726249707248,0.083407,59932.0,59931.0,0.06530592]
[1726249707442,1.5,59942.0,59931.0,0.42610592]
[1726249707633,1.5,59942.0,59932.0,0.06540711]
[1726249707833,0.083397,59939.0,59938.0,0.002]
[1726249708637,0.083397,59939.0,59938.0,0.007]
[1726249708941,0.083405,59933.0,59932.0,0.06540711]
[1726249709145,0.083415,59926.0,59925.0,0.06540711]
[1726249709335,0.083416,59925.0,59923.0,0.06540711]
[1726249709535,0.083418,59924.0,59923.0,0.06540711]
[1726249710349,0.083419,59923.0,59922.0,0.06540711]
[1726249710557,0.3608,59933.0,59921.0,0.06540711]
[1726249710558,0.08342,59922.0,59921.0,0.06540711]
[1726249710849,0.001,59926.0,59920.0,0.3608]
[1726249711350,0.001,59926.0,59921.0,0.06547048]
[1726249711746,0.001,59926.0,59920.0,0.42627048]
[1726249712046,0.083418,59924.0,59923.0,0.007]
[1726249712643,0.083418,59924.0,59921.0,0.003]
[1726249712852,0.083419,59923.0,59921.0,0.003]
[1726249713147,0.3608,59934.0,59923.0,0.001]
[1726249713338,0.083418,59925.0,59923.0,0.001]
[1726249713537,0.083418,59924.0,59923.0,0.001]
[1726249714341,0.08342,59922.0,59921.0,0.004]
[1726249714551,0.16684,59922.0,59921.0,0.004]
[1726249714756,0.16684,59922.0,59921.0,0.003]
[1726249715451,1.66684,59922.0,59921.0,0.003]
[1726249715750,1.58342,59922.0,59921.0,0.003]
[1726249716145,0.083422,59921.0,59918.0,0.083425]
[1726249716354,1.5,59922.0,59914.0,0.444232]
[1726249716542,0.083425,59919.0,59914.0,0.444232]
[1726249716848,0.083428,59917.0,59914.0,0.3608]
[1726249717151,1.5,59922.0,59914.0,0.3608]
[1726249717649,0.08343,59915.0,59914.0,0.3608]
[1726249717953,0.26,59934.0,59918.0,0.004]
[1726249718151,0.3608,59935.0,59925.0,0.3608]
[1726249718352,0.3608,59941.0,59927.0,0.083413]
[1726249718653,0.083405,59933.0,59927.0,0.083413]
[1726249718850,0.083405,59933.0,59926.0,0.1601]
[1726249719039,0.083407,59932.0,59926.0,0.1601]
[1726249719242,1.5,59940.0,59931.0,0.3608]
[1726249719448,0.426814,59932.0,59931.0,0.3608]
[1726249719642,0.26,59932.0,59925.0,0.3608]
[1726249720045,0.083415,59926.0,59925.0,0.3608]
[1726249721146,0.083415,59926.0,59925.0,0.3648]
[1726249722248,0.6208,59936.0,59925.0,0.3648]
[1726249722249,0.3608,59936.0,59925.0,0.3648]
[1726249722448,0.444209,59930.0,59925.0,0.3648]
[1726249722656,0.16683,59926.0,59925.0,0.004]
[1726249722954,0.083415,59926.0,59925.0,0.002]
[1726249723455,0.002,59932.0,59925.0,0.3628]
[1726249723659,0.083409,59930.0,59925.0,0.3608]
[1726249723844,0.083414,59927.0,59925.0,0.3638]
[1726249724052,0.083415,59926.0,59925.0,0.3678]
[1726249724463,0.083415,59926.0,59925.0,0.3648]
[1726249724645,0.083415,59926.0,59925.0,0.3658]
[1726249725055,0.08341,59930.0,59925.0,0.3658]
[1726249725252,0.083411,59929.0,59925.0,0.3658]
[1726249725560,0.083415,59926.0,59925.0,0.3658]
[1726249726169,0.26,59937.0,59925.0,0.3658]
[1726249726462,0.002,59926.0,59925.0,0.3648]
[1726249726854,0.002,59926.0,59925.0,0.43027048]
[1726249727056,0.083406,59933.0,59925.0,0.43027048]
[1726249727257,0.004,59926.0,59925.0,0.3648]
[1726249727461,0.004,59926.0,59925.0,0.42727048]
[1726249727662,0.004,59926.0,59925.0,0.42744336]
[1726249727663,0.087415,59926.0,59925.0,0.42744336]
[1726249727871,0.087415,59926.0,59925.0,0.37103286]
[1726249728162,0.088415,59926.0,59925.0,0.37003286]
[1726249728358,0.088415,59926.0,59925.0,0.3608]
[1726249728554,0.17183,59926.0,59925.0,0.3608]
[1726249729758,0.17183,59926.0,59918.0,0.06564336]
[1726249729759,0.083419,59923.0,59918.0,0.06564336]
[1726249730056,0.083425,59919.0,59918.0,0.06564336]
[1726249730365,0.083427,59917.0,59916.0,0.06564336]
[1726249730565,0.083425,59919.0,59914.0,0.3608]
[1726249730772,0.08343,59915.0,59914.0,0.3608]
[1726249731067,0.265916,59925.0,59914.0,0.3608]
[1726249731068,0.3608,59935.0,59915.0,0.08343]
[1726249731279,0.083413,59928.0,59922.0,0.14913345]
[1726249731457,0.083413,59928.0,59924.0,0.26]
[1726249731656,0.3608,59935.0,59927.0,0.083413]
[1726249731960,1.50084,59940.0,59930.0,0.083409]
[1726249732159,0.083399,59938.0,59933.0,0.3608]
[1726249732360,0.083394,59941.0,59933.0,0.3608]
[1726249732567,0.083404,59934.0,59930.0,0.3608]
[1726249733455,1.5,59939.0,59930.0,0.3608]
[1726249733658,0.083405,59934.0,59930.0,0.3608]
[1726249734059,0.092405,59934.0,59930.0,0.3618]
[1726249734471,0.097405,59934.0,59930.0,0.42851345]
[1726249734870,0.083405,59934.0,59930.0,0.42651345]
[1726249735066,0.1488859,59931.0,59930.0,0.3758]
[1726249735371,0.04084016,59931.0,59930.0,0.459209]
[1726249735562,0.04084016,59931.0,59930.0,0.460209]
[1726249735766,0.09202959,59931.0,59930.0,0.3768]
[1726249736372,0.04084016,59931.0,59930.0,0.3708]
[1726249736571,0.04084016,59931.0,59930.0,0.3778]
[1726249736766,0.09202948,59931.0,59930.0,0.3778]
[1726249737373,0.09302948,59931.0,59930.0,0.3768]
[1726249737569,0.09302948,59931.0,59930.0,0.3668]
[1726249737772,0.04184016,59931.0,59930.0,0.46876172]
[1726249737964,0.04184016,59931.0,59930.0,0.46976172]
[1726249738368,0.001,59931.0,59930.0,0.47076172]
[1726249738570,0.09303037,59931.0,59930.0,0.47076172]
[1726249738973,0.04184016,59931.0,59930.0,0.47076172]
[1726249739470,0.2322909,59933.0,59930.0,0.37935272]
[1726249739671,0.001,59931.0,59930.0,0.38535272]
[1726249739872,0.04184022,59931.0,59930.0,0.46876172]
[1726249740177,0.04084022,59931.0,59930.0,0.46276172]
[1726249740475,0.1488859,59935.0,59931.0,0.083408]
[1726249740678,0.0408381,59934.0,59931.0,0.083408]
[1726249740976,0.2322879,59936.0,59930.0,0.38235272]
[1726249740977,0.0408381,59933.0,59932.0,0.083407]
[1726249741175,0.0408381,59935.0,59932.0,0.083407]
[1726249741477,0.09202671,59935.0,59932.0,0.083407]
[1726249741675,0.09202671,59935.0,59930.0,0.38135272]
[1726249741676,0.17542971,59935.0,59930.0,0.38135272]
[1726249741871,0.09202671,59934.0,59930.0,0.38135272]
[1726249742177,0.09202696,59933.0,59932.0,0.094406]
[1726249742361,0.14977531,59933.0,59932.0,0.354407]
[1726249742566,0.09202696,59933.0,59932.0,0.094407]
[1726249742774,0.09202343,59933.0,59932.0,0.083407]
[1726249743175,0.1654288,59937.0,59932.0,0.083407]
[1726249743374,0.3608,59942.0,59934.0,0.083403]
[1726249743572,0.3608,59942.0,59932.0,0.083405]
[1726249743880,0.083398,59938.0,59932.0,0.083405]
[1726249744078,0.0834,59937.0,59932.0,0.083405]
[1726249744371,0.083397,59939.0,59934.0,0.083403]
[1726249745168,0.444193,59942.0,59937.0,0.083399]
[1726249745364,0.3608,59942.0,59936.0,0.3608]
[1726249745572,0.15367531,59966.0,59942.0,0.083391]
[1726249745573,0.3608,59953.0,59942.0,0.083391]
[1726249745871,0.083386,59947.0,59942.0,0.083391]
[1726249746068,0.083386,59947.0,59942.0,0.273391]
[1726249746266,0.083386,59947.0,59945.0,0.19]
[1726249746474,0.083386,59947.0,59946.0,0.3608]
[1726249747562,0.094386,59947.0,59946.0,0.3456]
[1726249748163,0.083386,59947.0,59946.0,0.3456]
[1726249748368,0.088386,59947.0,59946.0,0.3456]
[1726249749276,0.088386,59947.0,59946.0,0.35505973]
[1726249750174,0.23619772,59947.0,59946.0,0.35505973]
[1726249750382,0.18039571,59947.0,59946.0,0.35505973]
[1726249751766,0.36323936,59947.0,59946.0,0.35505973]
[1726249751974,0.18039571,59947.0,59946.0,0.35505973]
[1726249753972,0.09700971,59947.0,59946.0,0.43844673]
[1726249754378,0.15681172,59947.0,59946.0,0.62844673]
[1726249754570,0.09700971,59947.0,59946.0,1.21227373]
[1726249754981,0.27976527,59947.0,59946.0,0.71183373]
[1726249755283,0.27976527,59947.0,59946.0,0.62844673]
[1726249755668,0.09600971,59947.0,59946.0,0.63944673]
[1726249756281,0.22748195,59947.0,59946.0,0.45244673]
[1726249756478,0.20687727,59947.0,59946.0,0.36905973]
[1726249756672,0.04083092,59947.0,59946.0,0.37305973]
[1726249756868,0.09200971,59947.0,59946.0,0.37305973]
[1726249757073,0.27466074,59947.0,59946.0,0.45644673]
[1726249757473,0.27566074,59947.0,59946.0,0.45944673]
[1726249757877,0.09300971,59947.0,59946.0,0.45644673]
[1726249758075,0.09200971,59947.0,59946.0,0.36605973]
[1726249758381,0.083378,59953.0,59946.0,0.35905973]
[1726249758577,0.083378,59953.0,59946.0,0.37005973]
[1726249758783,0.083386,59947.0,59946.0,0.37005973]
[1726249758981,0.083386,59947.0,59946.0,0.35905973]
[1726249758982,0.166772,59947.0,59946.0,0.35905973]
[1726249759184,0.166772,59947.0,59946.0,0.37005973]
[1726249759487,0.083386,59947.0,59946.0,0.3606]
[1726249759672,0.083386,59947.0,59946.0,0.3566]
[1726249759983,0.083386,59947.0,59935.0,0.3608]
[1726249759984,0.083401,59936.0,59935.0,0.3608]
[1726249760578,0.083401,59936.0,59935.0,0.37017649]
[1726249760791,0.19,59937.0,59929.0,0.3608]
[1726249760974,0.083405,59933.0,59929.0,0.37027928]
[1726249761380,0.083408,59931.0,59929.0,0.37027928]
[1726249761572,0.083405,59933.0,59929.0,0.37027928]
[1726249761776,0.083404,59934.0,59929.0,0.37027928]
[1726249761980,0.083405,59933.0,59929.0,0.37027928]
[1726249762181,0.083407,59932.0,59929.0,0.37027928]
[1726249762386,0.083407,59932.0,59929.0,0.38127928]
[1726249762590,0.19,59933.0,59929.0,0.38127928]
[1726249762789,0.083409,59930.0,59929.0,0.38127928]
[1726249762990,0.083409,59930.0,59929.0,0.37727928]
[1726249763190,0.083409,59930.0,59929.0,0.38427928]
[1726249763887,0.083409,59930.0,59929.0,0.38127928]
[1726249764082,0.083409,59930.0,59929.0,0.3718]